bitfinex/quotes_BTCUSD_20250223
["timestamp","ask_amount","ask_price","bid_price","bid_amount"]
[1740295976816,0.14030674,96597.0,96591.0,0.01454085]
[1740295977682,0.00155297,96596.0,96591.0,0.01554085]
[1740295977890,0.00155297,96596.0,96591.0,0.01454085]
[1740295978104,0.00750622,96595.0,96591.0,0.01454085]
[1740295978337,0.00750622,96595.0,96591.0,0.01654085]
[1740295978574,0.00750622,96595.0,96591.0,0.01454085]
[1740295978783,0.00750622,96595.0,96591.0,0.01854085]
[1740295979440,0.00750622,96595.0,96591.0,0.01654085]
[1740295979647,0.00750622,96595.0,96591.0,0.01854085]
[1740295980049,0.00750622,96595.0,96591.0,0.01654085]
[1740295980251,0.1328,96597.0,96591.0,0.01854085]
[1740295980503,0.00750596,96594.0,96591.0,0.01854085]
[1740295980719,0.00155298,96593.0,96591.0,0.01854085]
[1740295980861,0.00629676,96593.0,96591.0,0.01854085]
[1740295981070,0.00155298,96596.0,96591.0,0.01854085]
[1740295981268,0.00845278,96592.0,96591.0,0.01854085]
[1740295981468,0.00155298,96596.0,96591.0,0.01854085]
[1740295981741,0.00845278,96592.0,96591.0,0.01454085]
[1740295981945,0.00155298,96596.0,96591.0,0.01554085]
[1740295982144,0.00845278,96592.0,96591.0,0.01654085]
[1740295982356,0.1328,96597.0,96591.0,0.01654085]
[1740295982515,0.00845278,96592.0,96591.0,0.01554085]
[1740295982710,0.00155299,96596.0,96591.0,0.01554085]
[1740295982913,0.00845278,96592.0,96591.0,0.01654085]
[1740295983139,0.1328,96597.0,96591.0,0.01654085]
[1740295983337,0.00845278,96592.0,96591.0,0.01654085]
[1740295983543,0.00155298,96596.0,96591.0,0.01654085]
[1740295983709,0.00845278,96592.0,96591.0,0.01654085]
[1740295984074,0.00845278,96592.0,96591.0,0.01554085]
[1740295984286,0.00155298,96596.0,96591.0,0.01554085]
[1740295984287,0.155288,96595.0,96591.0,0.01754085]
[1740295984492,0.00845278,96592.0,96591.0,0.01754085]
[1740295984628,0.00155298,96594.0,96591.0,0.01654085]
[1740295984835,0.00845278,96592.0,96591.0,0.01754085]
[1740295985038,0.00155298,96594.0,96591.0,0.01754085]
[1740295985235,0.00830702,96592.0,96591.0,0.01954085]
[1740295985495,0.00155298,96594.0,96591.0,0.01454085]
[1740295985619,0.00830642,96592.0,96591.0,0.01654085]
[1740295985822,0.15683899,96596.0,96591.0,0.01854085]
[1740295986023,0.00830642,96592.0,96591.0,0.01854085]
[1740295986271,0.00155299,96596.0,96591.0,0.01654085]
[1740295986465,0.00830642,96592.0,96591.0,0.01854085]
[1740295986692,0.00155299,96596.0,96591.0,0.01854085]
[1740295986888,0.00830642,96592.0,96591.0,0.01854085]
[1740295987093,0.00155299,96596.0,96591.0,0.01654085]
[1740295987300,0.00830642,96592.0,96591.0,0.01654085]
[1740295987472,0.00155299,96596.0,96591.0,0.01654085]
[1740295987669,0.00830642,96592.0,96591.0,0.01654085]
[1740295987879,0.15683899,96596.0,96591.0,0.01454085]
[1740295988049,0.00830642,96592.0,96591.0,0.01554085]
[1740295988256,0.00155298,96594.0,96591.0,0.01654085]
[1740295988479,0.00830642,96592.0,96591.0,0.01454085]
[1740295988682,0.00155298,96593.0,96591.0,0.01454085]
[1740295988881,0.00830642,96592.0,96591.0,0.01854085]
[1740295989103,0.00830642,96592.0,96591.0,0.01654085]
[1740295989355,0.16359842,96592.0,96591.0,0.01824125]
[1740295989662,0.00830642,96592.0,96591.0,0.01824125]
[1740295990032,0.0008502,96594.0,96591.0,0.01824125]
[1740295990411,0.00830673,96593.0,96591.0,0.01824125]
[1740295990613,0.00830673,96593.0,96591.0,0.01624125]
[1740295990813,0.00830673,96593.0,96591.0,0.01824125]
[1740295991019,0.00830673,96593.0,96591.0,0.02024125]
[1740295991221,0.00830673,96593.0,96591.0,0.01824125]
[1740295991570,0.00830673,96593.0,96591.0,0.02024125]
[1740296000713,0.00830673,96593.0,96591.0,0.02020125]
[1740296001348,0.00915693,96593.0,96591.0,0.02020125]
[1740296003817,0.00915693,96593.0,96592.0,0.31983285]
[1740296004024,0.0008502,96593.0,96592.0,0.31983285]
[1740296005096,0.0008502,96593.0,96592.0,0.32383285]
[1740296005272,0.0008502,96593.0,96592.0,0.32783285]
[1740296005474,0.0008502,96593.0,96592.0,0.32383285]
[1740296006556,0.0008502,96593.0,96592.0,0.31983285]
[1740296006812,0.0008502,96593.0,96592.0,0.32783285]
[1740296007060,0.0008502,96593.0,96592.0,0.32483285]
[1740296007450,0.0008502,96593.0,96592.0,0.33307176]
[1740296008405,0.0008502,96593.0,96592.0,0.32807176]
[1740296008627,0.0008502,96593.0,96592.0,0.32307176]
[1740296009023,0.0008502,96593.0,96592.0,0.16777976]
[1740296009202,0.0832502,96593.0,96592.0,0.16777976]
[1740296009408,0.09155162,96593.0,96592.0,0.16454085]
[1740296009609,0.09155162,96593.0,96592.0,0.16854085]
[1740296009811,0.35104029,96593.0,96592.0,0.004]
[1740296010061,0.34948731,96593.0,96592.0,0.004]
[1740296010493,0.34948731,96593.0,96592.0,0.008]
[1740296011094,0.34948731,96593.0,96592.0,0.004]
[1740296011299,0.34948731,96593.0,96591.0,0.0017004]
[1740296011498,0.10419881,96592.0,96591.0,0.0017004]
[1740296011955,0.11250022,96592.0,96591.0,0.0017004]
[1740296013850,0.11250022,96592.0,96591.0,0.0037004]
[1740296014357,0.11250022,96592.0,96591.0,0.0057004]
[1740296014564,0.11250022,96592.0,96591.0,0.0037004]
[1740296020190,0.26779222,96592.0,96591.0,0.0037004]
[1740296020409,0.2662391,96592.0,96591.0,0.0037004]
[1740296023735,0.2662391,96592.0,96591.0,0.0017004]
[1740296024362,0.2662391,96592.0,96591.0,0.02258936]
[1740296024565,0.2670894,96592.0,96591.0,0.02258936]
[1740296024767,0.1117974,96592.0,96591.0,0.02258936]
[1740296024984,0.00915171,96592.0,96591.0,0.03713021]
[1740296025408,0.00915171,96592.0,96591.0,0.19242321]
[1740296025819,0.0008503,96592.0,96591.0,0.19242321]
[1740296026906,0.0008503,96592.0,96591.0,0.19642321]
[1740296027113,0.0008503,96592.0,96591.0,0.19842321]
[1740296027329,0.0008503,96592.0,96591.0,0.19642321]
[1740296027787,0.0008503,96592.0,96591.0,0.20042321]
[1740296033629,0.0008503,96592.0,96591.0,0.35042321]
[1740296035933,0.0008503,96592.0,96591.0,0.3536623]
[1740296041648,0.0008503,96592.0,96591.0,0.35042321]
[1740296042061,0.0008503,96592.0,96591.0,0.40022321]
[1740296043654,0.0008503,96592.0,96591.0,0.39222321]
[1740296044009,0.0008503,96592.0,96591.0,0.40622321]
[1740296044186,0.0008503,96592.0,96591.0,0.39922321]
[1740296044391,0.0008503,96592.0,96591.0,0.39222321]
[1740296044591,0.0008503,96592.0,96591.0,0.40622321]
[1740296049978,0.0008503,96592.0,96591.0,0.39922321]
[1740296050180,0.0008503,96592.0,96591.0,0.40622321]
[1740296050397,0.0008503,96592.0,96591.0,0.39922321]
[1740296050605,0.0008503,96592.0,96591.0,0.40622321]
[1740296050813,0.0008503,96592.0,96591.0,0.39922321]
[1740296051549,0.0008503,96592.0,96591.0,0.40622321]
[1740296051726,0.0008503,96592.0,96591.0,0.41322321]
[1740296054373,0.0008503,96592.0,96591.0,0.39922321]
[1740296054573,0.0008503,96592.0,96591.0,0.39222321]
[1740296054776,0.0008503,96592.0,96591.0,0.40622321]
[1740296055570,0.0008503,96592.0,96591.0,0.39922321]
[1740296055939,0.0008503,96592.0,96591.0,0.39222321]
[1740296056368,0.0008503,96592.0,96591.0,0.39922321]
[1740296056750,0.0008503,96592.0,96591.0,0.39222321]
[1740296057107,0.0008503,96592.0,96591.0,0.39922321]
[1740296057468,0.0008503,96592.0,96591.0,0.40622321]
[1740296057629,0.0008503,96592.0,96591.0,0.39922321]
[1740296058051,0.0008503,96592.0,96591.0,0.40622321]
[1740296058309,0.0008503,96592.0,96591.0,0.39922321]
[1740296058515,0.0008503,96592.0,96591.0,0.40622321]
[1740296058812,0.0008503,96592.0,96591.0,0.39922321]
[1740296059244,0.0008503,96592.0,96591.0,0.39222321]
[1740296059579,0.0008503,96592.0,96591.0,0.39922321]
[1740296061217,0.0008503,96592.0,96591.0,0.40622321]
[1740296061434,0.0008503,96592.0,96591.0,0.40618321]
[1740296062016,0.0008503,96592.0,96591.0,0.34938321]
[1740296062551,0.0008503,96592.0,96591.0,0.34238321]
[1740296062773,0.07634673,96608.0,96599.0,0.15528]
[1740296062976,0.07634673,96608.0,96600.0,0.01454085]
[1740296063802,0.07634673,96608.0,96601.0,0.01454085]
[1740296065278,0.07634673,96608.0,96601.0,0.01654085]
[1740296066586,0.07634673,96608.0,96601.0,0.01854085]
[1740296066793,0.07634673,96608.0,96601.0,0.01654085]
[1740296067413,0.07634673,96608.0,96601.0,0.01854085]
[1740296070212,0.07634673,96608.0,96601.0,0.01654085]
[1740296070416,0.3297,96617.0,96605.0,0.01454085]
[1740296070633,0.08,96616.0,96605.0,0.01454085]
[1740296071083,0.0008503,96608.0,96603.0,0.01454085]
[1740296071906,0.0008503,96608.0,96606.0,0.01454085]
[1740296073187,0.0008503,96608.0,96606.0,0.02490437]
[1740296073610,0.0008503,96608.0,96606.0,0.02690437]
[1740296074027,0.0008503,96608.0,96606.0,0.02890437]
[1740296074958,0.0008503,96608.0,96607.0,0.01454085]
[1740296076552,0.0008503,96608.0,96607.0,0.01754085]
[1740296076893,0.0008503,96608.0,96607.0,0.02054085]
[1740296080032,0.0008503,96608.0,96607.0,0.01754085]
[1740296080414,0.0008503,96608.0,96607.0,0.01654085]
[1740296080733,0.0008503,96608.0,96607.0,0.03976542]
[1740296080907,0.0008503,96608.0,96607.0,0.03776542]
[1740296081494,0.0008503,96608.0,96607.0,0.04076542]
[1740296081694,0.0008503,96608.0,96607.0,0.03876542]
[1740296081998,0.0008503,96608.0,96607.0,0.04176542]
[1740296083746,0.0008503,96608.0,96607.0,0.5774213]
[1740296083949,0.0008503,96608.0,96607.0,0.60845126]
[1740296084368,0.0008503,96608.0,96607.0,0.60545126]
[1740296084960,0.0008503,96608.0,96607.0,0.60245126]
[1740296085169,0.0008503,96608.0,96607.0,0.60945126]
[1740296085571,0.0008503,96608.0,96607.0,0.61245126]
[1740296086049,0.0008503,96608.0,96607.0,0.22503757]
[1740296086321,0.0008503,96608.0,96607.0,0.157]
[1740296086516,0.0008503,96608.0,96607.0,0.164]
[1740296086964,0.0008503,96608.0,96607.0,0.17854085]
[1740296087141,0.16363688,96608.0,96607.0,0.17154085]
[1740296087387,0.0008503,96608.0,96607.0,0.17754085]
[1740296087594,0.00837398,96608.0,96607.0,0.17154085]
[1740296087764,0.00837398,96608.0,96607.0,0.16454085]
[1740296088011,0.00837398,96608.0,96607.0,0.17054085]
[1740296088212,0.00837398,96608.0,96607.0,0.17754085]
[1740296088603,0.00837398,96608.0,96607.0,0.17054085]
[1740296088917,0.00837398,96608.0,96607.0,0.17754085]
[1740296089344,0.00837398,96608.0,96607.0,0.43545454]
[1740296089635,0.0008503,96608.0,96607.0,0.48165454]
[1740296089983,0.0008503,96608.0,96607.0,0.5138716]
[1740296090197,0.0008503,96608.0,96607.0,0.5078716]
[1740296090609,0.0008503,96608.0,96607.0,0.48265454]
[1740296090790,0.0008503,96608.0,96607.0,0.47565454]
[1740296091003,0.0008503,96608.0,96607.0,0.48265454]
[1740296092451,0.0008503,96608.0,96607.0,0.43645454]
[1740296094862,0.0008503,96608.0,96607.0,0.43815534]
[1740296104246,0.0008503,96608.0,96607.0,0.18024165]
[1740296104447,0.0008503,96608.0,96607.0,0.33550965]
[1740296104650,0.0008503,96608.0,96607.0,0.18024165]
[1740296105270,0.00837601,96608.0,96607.0,0.17324165]
[1740296105524,0.16364201,96608.0,96607.0,0.1587008]
[1740296105908,0.00837601,96608.0,96607.0,0.17924165]
[1740296106831,0.00837601,96608.0,96607.0,0.17224165]
[1740296107211,0.00837601,96608.0,96607.0,0.17924165]
[1740296107607,0.0008503,96608.0,96607.0,0.17924165]
[1740296108295,0.00837725,96608.0,96607.0,0.17924165]
[1740296108911,0.0008503,96608.0,96607.0,0.17924165]
[1740296109111,0.00837725,96608.0,96607.0,0.17924165]
[1740296109334,0.16364325,96608.0,96607.0,0.17924165]
[1740296110766,0.16364325,96608.0,96607.0,0.02924165]
[1740296113242,0.16364325,96608.0,96607.0,0.01624165]
[1740296113410,0.16364325,96608.0,96607.0,0.02024165]
[1740296113613,0.24684325,96608.0,96607.0,0.02224165]
[1740296113978,0.24684325,96608.0,96607.0,0.01824165]
[1740296114191,0.24684325,96608.0,96607.0,0.02024165]
[1740296119770,0.24684325,96608.0,96607.0,0.01824165]
[1740296119967,0.24684325,96608.0,96607.0,0.01624165]
[1740296120173,0.24684325,96608.0,96607.0,0.01724165]
[1740296122093,0.24684325,96608.0,96607.0,0.01720165]
[1740296123255,0.24684325,96608.0,96607.0,0.03832322]
[1740296131902,0.24885138,96608.0,96607.0,0.03832322]
[1740296140400,0.29585138,96608.0,96607.0,0.03832322]
[1740296142157,0.29597138,96608.0,96607.0,0.03832322]
[1740296145474,0.29597138,96608.0,96607.0,0.01720165]
[1740296146570,0.24897138,96608.0,96607.0,0.01720165]
[1740296151111,0.35161707,96608.0,96607.0,0.0026608]
[1740296152420,0.35161707,96608.0,96607.0,0.01720165]
[1740296153342,0.3621242,96608.0,96607.0,0.01720165]
[1740296159322,0.3621242,96608.0,96607.0,0.0026608]
[1740296162875,0.6918242,96608.0,96607.0,0.0026608]
[1740296169561,0.7380242,96608.0,96607.0,0.0026608]
[1740296170452,0.7380242,96608.0,96607.0,0.0016608]
[1740296170653,0.7390242,96608.0,96607.0,0.0016608]
[1740296173514,0.7390242,96608.0,96607.0,0.02257356]
[1740296177967,0.72851707,96608.0,96607.0,0.02257356]
[1740296180024,0.73866462,96608.0,96607.0,0.02257356]
[1740296182953,0.73866462,96608.0,96607.0,0.02253356]
[1740296197359,0.72851707,96608.0,96607.0,0.02253356]
[1740296197541,0.68231707,96608.0,96607.0,0.02253356]
[1740296198703,0.59911707,96608.0,96607.0,0.02253356]
[1740296199281,0.44385107,96608.0,96607.0,0.02253356]
[1740296199487,0.59911707,96608.0,96607.0,0.02253356]
[1740296199887,0.59811707,96608.0,96607.0,0.02253356]
[1740296200301,0.59911707,96608.0,96607.0,0.02253356]
[1740296201835,0.59811707,96608.0,96607.0,0.02253356]
[1740296202247,0.34120538,96608.0,96607.0,0.02253356]
[1740296202567,0.34120538,96608.0,96607.0,0.03707441]
[1740296202890,0.34020538,96608.0,96607.0,0.03707441]
[1740296203038,0.34120538,96608.0,96607.0,0.03707441]
[1740296203423,0.34020538,96608.0,96607.0,0.03707441]
[1740296203629,0.34008538,96608.0,96607.0,0.03707441]
[1740296203846,0.01038538,96608.0,96607.0,0.03707441]
[1740296204449,0.01038538,96608.0,96607.0,0.19234241]
[1740296204650,0.0008503,96608.0,96607.0,0.27833998]
[1740296204861,0.0008503,96608.0,96607.0,0.40123998]
[1740296205426,0.0008503,96608.0,96607.0,0.55423998]
[1740296205739,0.0008503,96608.0,96607.0,0.55998796]
[1740296205964,0.0008503,96608.0,96607.0,0.55898796]
[1740296206183,0.0008503,96608.0,96607.0,0.56730796]
[1740296206427,0.0008503,96608.0,96607.0,0.57330796]
[1740296206766,0.0008503,96608.0,96607.0,0.57630796]
[1740296208000,0.0008503,96608.0,96607.0,0.57330796]
[1740296208209,0.0008503,96608.0,96607.0,0.57830796]
[1740296211963,0.0008503,96608.0,96607.0,0.57055998]
[1740296212536,0.0008503,96608.0,96607.0,0.57829096]
[1740296212742,0.0008503,96608.0,96607.0,0.4955322]
[1740296214143,0.0008503,96608.0,96607.0,0.48780122]
[1740296223266,0.0008503,96608.0,96607.0,0.48456241]
[1740296227986,0.0008503,96608.0,96607.0,0.49229549]
[1740296229607,0.0008503,96608.0,96607.0,0.49553388]
[1740296232795,0.0008503,96608.0,96607.0,0.47462112]
[1740296233002,0.0008503,96608.0,96607.0,0.57726681]
[1740296233206,0.0008503,96608.0,96607.0,0.60946789]
[1740296233703,0.0008503,96608.0,96607.0,0.61464916]
[1740296233905,0.0004,96609.0,96608.0,0.24284085]
[1740296234120,0.0004,96609.0,96608.0,0.46044638]
[1740296234327,7e-05,96614.0,96610.0,0.16454085]
[1740296234449,0.00011308,96614.0,96613.0,0.305258]
[1740296234678,0.00011308,96614.0,96613.0,1.20074454]
[1740296235319,0.00011308,96614.0,96613.0,1.2178042]
[1740296235520,0.00011308,96614.0,96613.0,1.23018209]
[1740296235774,0.00011308,96614.0,96613.0,1.24491517]
[1740296236578,0.00011308,96614.0,96613.0,1.33774399]
[1740296237193,0.00011308,96614.0,96613.0,1.34474399]
[1740296237764,0.00096348,96614.0,96613.0,1.3323661]
[1740296240049,0.00096348,96614.0,96613.0,1.34473488]
[1740296240224,0.00096348,96614.0,96613.0,1.25190606]
[1740296242325,0.00096348,96614.0,96613.0,0.55190606]
[1740296242922,0.00096348,96614.0,96613.0,0.53953728]
[1740296243131,0.00096348,96614.0,96613.0,0.53435601]
[1740296243788,0.00096348,96614.0,96613.0,0.53431601]
[1740296244213,0.00096348,96614.0,96613.0,0.5548499]
[1740296245413,0.00096348,96614.0,96613.0,0.4765499]
[1740296245609,0.00096348,96614.0,96613.0,0.37390421]
[1740296245930,0.00096348,96614.0,96613.0,0.46656425]
[1740296246323,0.00096348,96614.0,96613.0,0.45792425]
[1740296248227,0.00096348,96614.0,96613.0,0.30270625]
[1740296249691,0.00096348,96614.0,96613.0,0.45796425]
[1740296249888,0.00096348,96614.0,96613.0,0.36530421]
[1740296256848,0.00096348,96614.0,96613.0,0.18951232]
[1740296256998,0.00096348,96614.0,96613.0,0.34477032]
[1740296257440,0.00096348,96614.0,96613.0,0.18951232]
[1740296257841,0.00096348,96614.0,96613.0,0.03951232]
[1740296258051,0.01190426,96614.0,96613.0,0.03951232]
[1740296259262,0.01190426,96614.0,96613.0,0.03251232]
[1740296259758,0.01190426,96614.0,96613.0,0.03851232]
[1740296260211,0.01190426,96614.0,96613.0,0.02551232]
[1740296260411,0.01190426,96614.0,96613.0,0.03051232]
[1740296260544,0.01190426,96614.0,96613.0,0.03551232]
[1740296260947,0.01190426,96614.0,96613.0,0.03051232]
[1740296261146,0.01190426,96614.0,96613.0,0.03551232]
[1740296261970,0.01190426,96614.0,96613.0,0.03721312]
[1740296262450,0.16716126,96614.0,96613.0,0.03721312]
[1740296263169,0.16716126,96614.0,96613.0,0.02948004]
[1740296264164,0.01190426,96614.0,96613.0,0.02948004]
[1740296264567,0.01190426,96614.0,96613.0,0.02624165]
[1740296265365,0.01190426,96614.0,96613.0,0.02612165]
[1740296268303,0.01190426,96614.0,96613.0,0.02936011]
[1740296268484,0.16716126,96614.0,96613.0,0.02936011]
[1740296268688,0.01190426,96614.0,96613.0,0.02936011]
[1740296269115,0.00096348,96614.0,96613.0,0.02936011]
[1740296269757,0.0119051,96614.0,96613.0,0.02936011]
[1740296271247,0.00096348,96614.0,96613.0,0.02936011]
[1740296271821,0.0119051,96614.0,96613.0,0.02936011]
[1740296272022,0.0119051,96614.0,96613.0,0.03709319]
[1740296273628,0.00096348,96614.0,96613.0,0.03709319]
[1740296273804,0.01190931,96614.0,96613.0,0.03709319]
[1740296274181,0.00096348,96614.0,96613.0,0.03709319]
[1740296275079,0.01190972,96614.0,96613.0,0.03709319]
[1740296275319,0.00096348,96614.0,96613.0,0.03709319]
[1740296276207,0.01190972,96614.0,96613.0,0.03709319]
[1740296276355,0.01190972,96614.0,96613.0,0.0578854]
[1740296278506,0.16716672,96614.0,96613.0,0.0578854]
[1740296280057,0.16716672,96614.0,96613.0,0.06306694]
[1740296280254,0.16716672,96614.0,96613.0,0.04864609]
[1740296280516,0.29986672,96614.0,96613.0,0.04864609]
[1740296282008,0.25036672,96614.0,96613.0,0.04864609]
[1740296284973,0.25036672,96614.0,96613.0,0.04775198]
[1740296285185,0.25036672,96614.0,96613.0,0.04257044]
[1740296287362,0.25036672,96614.0,96613.0,0.03933198]
[1740296294297,0.35301241,96614.0,96613.0,0.03933198]
[1740296294704,0.39961241,96614.0,96613.0,0.03933198]
[1740296296553,0.72931241,96614.0,96613.0,0.03933198]
[1740296298114,0.72931241,96614.0,96613.0,0.0315989]
[1740296304537,0.72931241,96614.0,96613.0,0.0315589]
[1740296309843,0.72931241,96614.0,96613.0,0.02749301]
[1740296310095,0.73031241,96614.0,96613.0,0.02749301]
[1740296310570,0.73031241,96614.0,96613.0,0.02249301]
[1740296310804,0.60051241,96614.0,96613.0,0.02249301]
[1740296311034,0.44525541,96614.0,96613.0,0.02249301]
[1740296311519,0.60051241,96614.0,96613.0,0.02249301]
[1740296312788,0.60051241,96614.0,96613.0,0.02349301]
[1740296313009,0.59951241,96614.0,96613.0,0.02349301]
[1740296313300,0.60051241,96614.0,96613.0,0.02349301]
[1740296313730,0.59951241,96614.0,96613.0,0.02349301]
[1740296314090,0.26981241,96614.0,96613.0,0.02349301]
[1740296314565,0.26981241,96614.0,96613.0,0.02249301]
[1740296314815,0.26981241,96614.0,96613.0,0.02349301]
[1740296315017,0.26981241,96614.0,96613.0,0.02249301]
[1740296315018,0.11455541,96614.0,96613.0,0.02249301]
[1740296315155,0.11455541,96614.0,96613.0,0.02349301]
[1740296315586,0.11455541,96614.0,96613.0,0.02249301]
[1740296315760,0.11455541,96614.0,96613.0,0.02349301]
[1740296316186,0.11455541,96614.0,96613.0,0.02249301]
[1740296316386,0.11455541,96614.0,96613.0,0.02349301]
[1740296318527,0.01190972,96614.0,96613.0,0.02349301]
[1740296319734,0.01190972,96614.0,96613.0,0.02449301]
[1740296320895,0.01190972,96614.0,96613.0,0.02349301]
[1740296321068,0.01190972,96614.0,96613.0,0.02449301]
[1740296322953,0.01190972,96614.0,96613.0,0.02349301]
[1740296323687,0.01190972,96614.0,96613.0,0.02249301]
[1740296324210,0.01190972,96614.0,96613.0,0.02349301]
[1740296325377,0.01190972,96614.0,96613.0,0.02249301]
[1740296325577,0.01190972,96614.0,96613.0,0.02349301]
[1740296326394,0.01190972,96614.0,96613.0,0.02449301]
[1740296327611,0.01190972,96614.0,96613.0,0.02349301]
[1740296327814,0.01190972,96614.0,96613.0,0.03388415]
[1740296328012,0.01190972,96614.0,96613.0,0.02349301]
[1740296328240,0.01190972,96614.0,96613.0,0.02449301]
[1740296328438,0.01190972,96614.0,96613.0,0.02349301]
[1740296328858,0.01190972,96614.0,96613.0,0.02449301]
[1740296329060,0.01190972,96614.0,96613.0,0.10439301]
[1740296329508,0.00096348,96614.0,96613.0,0.10439301]
[1740296330737,0.00096348,96614.0,96613.0,0.02449301]
[1740296331356,0.00096348,96614.0,96613.0,0.03512091]
[1740296331962,0.00096348,96614.0,96613.0,0.02449301]
[1740296333452,0.00096348,96614.0,96613.0,0.03488727]
[1740296335626,0.00096348,96614.0,96613.0,0.02449301]
[1740296335627,0.01188762,96614.0,96613.0,0.02449301]
[1740296337120,0.00096348,96614.0,96613.0,0.02449301]
[1740296337330,0.00096348,96614.0,96613.0,0.0037008]
[1740296337700,0.01188762,96614.0,96613.0,0.0037008]
[1740296338774,0.00096348,96614.0,96613.0,0.0037008]
[1740296338973,0.01188891,96614.0,96613.0,0.0037008]
[1740296339150,0.00096348,96614.0,96613.0,0.0037008]
[1740296339359,0.01188891,96614.0,96613.0,0.0037008]
[1740296340096,0.00096348,96614.0,96613.0,0.0037008]
[1740296340301,0.01188891,96614.0,96613.0,0.0037008]
[1740296340748,0.00096348,96614.0,96613.0,0.0037008]
[1740296341376,0.01188891,96614.0,96613.0,0.01143388]
[1740296342109,0.00096348,96614.0,96613.0,0.01143388]
[1740296343119,0.01188891,96614.0,96613.0,0.01143388]
[1740296343324,0.00096348,96614.0,96613.0,0.01143388]
[1740296343549,0.01188891,96614.0,96613.0,0.01143388]
[1740296343756,0.00096348,96614.0,96613.0,0.01143388]
[1740296343956,0.01188891,96614.0,96613.0,0.01143388]
[1740296344185,0.00096348,96614.0,96613.0,0.01143388]
[1740296344466,0.01188891,96614.0,96613.0,0.01143388]
[1740296345306,0.00096348,96614.0,96613.0,0.0320379]
[1740296345845,0.01188891,96614.0,96613.0,0.0320379]
[1740296346092,0.00096348,96614.0,96613.0,0.0320379]
[1740296346610,0.01188891,96614.0,96613.0,0.0320379]
[1740296348234,0.00096348,96614.0,96613.0,0.0320379]
[1740296350215,0.00096348,96614.0,96613.0,0.03527641]
[1740296353101,0.00096348,96614.0,96613.0,0.02754333]
[1740296353493,0.00096348,96614.0,96613.0,0.03528903]
[1740296353700,0.00096348,96614.0,96613.0,0.03205052]
[1740296361189,0.00096348,96614.0,96613.0,0.18730852]
[1740296362427,0.00096348,96614.0,96613.0,0.03205052]
[1740296364274,0.00096348,96614.0,96613.0,0.18730852]
[1740296364855,0.00096348,96614.0,96613.0,0.03205052]
[1740296365500,0.00096348,96614.0,96613.0,0.18730852]
[1740296365650,0.00096348,96614.0,96613.0,0.18726852]
[1740296366053,0.00096348,96614.0,96613.0,0.03201052]
[1740296366351,0.00096348,96614.0,96613.0,0.18726852]
[1740296368672,0.00096348,96614.0,96613.0,0.33015138]
[1740296368879,0.00096348,96614.0,96613.0,0.32890937]
[1740296369734,0.00096348,96614.0,96613.0,0.32790937]
[1740296370209,0.00096348,96614.0,96613.0,0.32990937]
[1740296370561,0.00096348,96614.0,96613.0,0.32890937]
[1740296371145,0.00096348,96614.0,96613.0,0.33090937]
[1740296371358,0.00096348,96614.0,96613.0,0.25370937]
[1740296371780,0.00096348,96614.0,96613.0,0.20380937]
[1740296383161,0.00096348,96614.0,96613.0,0.20180937]
[1740296383357,0.00096348,96614.0,96613.0,0.19980937]
[1740296383562,0.00096348,96614.0,96613.0,0.20480937]
[1740296383919,0.00096348,96614.0,96613.0,0.19980937]
[1740296384666,0.00096348,96614.0,96613.0,0.20380937]
[1740296384830,0.00096348,96614.0,96613.0,0.19980937]
[1740296385370,0.00096348,96614.0,96613.0,0.20480937]
[1740296386067,0.00096348,96614.0,96613.0,0.20980937]
[1740296386428,0.00096348,96614.0,96613.0,0.19706367]
[1740296386642,0.00096348,96614.0,96613.0,0.20206367]
[1740296387017,0.00096348,96614.0,96613.0,0.20980528]
[1740296389954,0.00096348,96614.0,96613.0,0.35980528]
[1740296390635,0.00096348,96614.0,96613.0,0.39204876]
[1740296390836,0.00096348,96614.0,96613.0,0.38704876]
[1740296391561,0.00096348,96614.0,96613.0,0.38204876]
[1740296391771,0.00096348,96614.0,96613.0,0.38704876]
[1740296392135,0.00096348,96614.0,96613.0,0.38804876]
[1740296392504,4.26e-05,96634.0,96613.0,0.4024672]
[1740296392716,0.00047356,96634.0,96614.0,0.19802616]
[1740296392825,0.00047356,96634.0,96627.0,0.155235]
[1740296393036,0.01205215,96633.0,96628.0,0.155234]
[1740296393241,0.00047356,96634.0,96628.0,0.155234]
[1740296393436,0.00047356,96634.0,96631.0,0.155228]
[1740296394051,0.00047356,96634.0,96628.0,0.155234]
[1740296394269,0.00047356,96634.0,96629.0,0.155232]
[1740296394469,0.00047356,96634.0,96620.0,0.12269421]
[1740296394716,0.00040186,96634.0,96629.0,0.155232]
[1740296394910,0.00040186,96634.0,96632.0,0.155227]
[1740296395124,0.00040186,96634.0,96632.0,0.00774161]
[1740296395328,0.00040186,96634.0,96632.0,0.16296861]
[1740296395931,0.00040186,96634.0,96632.0,0.00774161]
[1740296396291,0.00040186,96634.0,96633.0,0.00774161]
[1740296397855,0.00040186,96634.0,96632.0,0.00774161]
[1740296398216,0.00040186,96634.0,96633.0,0.00323786]
[1740296399657,0.00040186,96634.0,96633.0,0.15846386]
[1740296400915,0.00040186,96634.0,96633.0,0.16046386]
[1740296401544,0.00040186,96634.0,96633.0,0.00523786]
[1740296402094,0.00040186,96634.0,96633.0,0.16046386]
[1740296402726,0.00040186,96634.0,96633.0,0.16146386]
[1740296403742,0.00040186,96634.0,96633.0,0.00623786]
[1740296405242,0.00040186,96634.0,96633.0,0.02721612]
[1740296405898,0.08280186,96634.0,96633.0,0.02891652]
[1740296406107,0.08365206,96634.0,96633.0,0.02891652]
[1740296406270,0.09451528,96634.0,96633.0,0.02891652]
[1740296408584,0.09451528,96634.0,96633.0,0.02567866]
[1740296410366,0.01211528,96634.0,96633.0,0.02567866]
[1740296413961,0.01211528,96634.0,96633.0,0.03342027]
[1740296414373,0.00125206,96634.0,96633.0,0.03342027]
[1740296414776,0.05413979,96639.0,96633.0,0.04831421]
[1740296414977,0.05418286,96639.0,96633.0,0.02733595]
[1740296415185,0.01086274,96638.0,96633.0,0.02733595]
[1740296415739,0.01086274,96638.0,96634.0,0.00774161]
[1740296416683,4.307e-05,96639.0,96634.0,0.00774161]
[1740296416899,0.01086249,96638.0,96635.0,0.01489394]
[1740296417302,0.01086249,96638.0,96635.0,0.02263555]
[1740296417563,0.01086249,96638.0,96637.0,0.15522]
[1740296417694,4.307e-05,96639.0,96637.0,0.15522]
[1740296417895,4.307e-05,96639.0,96635.0,0.22959955]
[1740296417896,4.307e-05,96639.0,96638.0,0.155218]
[1740296419132,4.307e-05,96639.0,96638.0,0.16975885]
[1740296419343,4.307e-05,96639.0,96638.0,0.17300047]
[1740296419974,4.307e-05,96639.0,96638.0,0.17700047]
[1740296420438,4.307e-05,96639.0,96638.0,0.17823828]
[1740296420883,4.307e-05,96639.0,96638.0,0.18997668]
[1740296421146,4.307e-05,96639.0,96638.0,0.19861668]
[1740296422511,4.307e-05,96639.0,96638.0,0.19737506]
[1740296423975,4.307e-05,96639.0,96638.0,0.20255516]
[1740296424375,4.307e-05,96639.0,96638.0,0.22344837]
[1740296425177,4.307e-05,96639.0,96638.0,0.21480837]
[1740296426454,4.307e-05,96639.0,96638.0,0.21476837]
[1740296427194,4.307e-05,96639.0,96638.0,0.20026752]